bitfinex/quotes_ETHUSD_20240825
["timestamp","ask_amount","ask_price","bid_price","bid_amount"]
[1724557615164,5.23108,2761.6,2761.5,1.88867903]
[1724557615393,1.61,2761.6,2761.4,1.88867903]
[1724557615591,0.55,2761.5,2761.4,2.2285783]
[1724557615778,0.55,2761.5,2761.4,3.48773446]
[1724557616223,0.55,2761.5,2761.4,3.4877414]
[1724557617255,0.55,2761.5,2761.4,3.48777396]
[1724557617491,0.55,2761.5,2761.4,1.59905331]
[1724557617919,0.55,2761.5,2761.4,0.33990621]
[1724557618768,0.55,2761.5,2761.2,4.89277027]
[1724557618980,3.0004,2761.5,2761.0,6.14003538]
[1724557619186,4.389517,2761.4,2761.1,0.33992827]
[1724557619397,4.389517,2761.4,2761.2,0.76068989]
[1724557619398,4.17152,2761.3,2761.2,0.76068989]
[1724557619699,7.17152,2761.3,2761.2,0.76068989]
[1724557620699,9.62192,2761.3,2761.2,0.76068989]
[1724557624511,9.62192,2761.3,2761.0,1.14103484]
[1724557624512,10.89316027,2761.3,2761.0,1.14103484]
[1724557624724,6.07228,2761.0,2760.8,0.76068989]
[1724557624899,0.55,2760.9,2760.8,0.76068989]
[1724557626512,5.44324027,2760.9,2760.8,0.76068989]
[1724557626727,8.44324027,2760.9,2760.8,0.76068989]
[1724557626929,9.8947933,2760.9,2760.8,0.76068989]
[1724557627530,13.5167933,2760.9,2760.8,0.76068989]
[1724557627732,15.8631933,2760.9,2760.8,0.76068989]
[1724557629668,12.2411933,2760.9,2760.2,30.39202862]
[1724557629823,3.0,2760.8,2760.3,3.62279]
[1724557630023,0.55,2760.7,2760.3,3.62279]
[1724557632065,0.55,2760.7,2760.5,2.3391]
[1724557632220,0.55,2760.7,2760.5,2.935275]
[1724557632425,0.55,2760.8,2760.5,2.935275]
[1724557633135,3.55,2760.8,2760.5,2.935275]
[1724557636573,0.55,2760.8,2760.5,2.935275]
[1724557636873,3.0,2760.7,2760.5,2.935275]
[1724557637174,0.55,2760.8,2760.5,2.935275]
[1724557637175,0.55,2760.6,2760.5,2.935275]
[1724557637372,3.55,2760.8,2760.5,2.935275]
[1724557637870,3.55,2760.8,2760.5,0.596175]
[1724557638072,3.55,2760.8,2760.3,6.03329]
[1724557638445,7.17215,2760.8,2760.3,6.03329]
[1724557638858,3.55,2760.8,2760.3,6.03329]
[1724557639042,0.55,2760.8,2760.3,6.03329]
[1724557642547,0.55,2760.8,2760.5,4.89365027]
[1724557643052,0.55,2760.8,2760.4,6.03316]
[1724557643274,10.24386,2761.0,2760.4,6.03316]
[1724557643275,0.55,2760.9,2760.4,6.03316]
[1724557643460,0.55,2760.7,2760.4,9.65575]
[1724557643646,0.55,2760.9,2760.4,6.03309]
[1724557643850,0.55,2760.9,2760.5,0.73043303]
[1724557645167,4.17201,2760.9,2760.5,0.73043303]
[1724557646492,4.17201,2760.9,2760.4,25.46220862]
[1724557648160,3.62216,2760.8,2760.4,21.83961862]
[1724557648361,0.55,2760.7,2760.4,21.83961862]
[1724557648567,4.17227,2760.7,2760.4,21.83961862]
[1724557649187,0.55,2760.7,2760.4,21.83961862]
[1724557649393,3.55,2760.7,2760.4,21.83961862]
[1724557652192,3.55,2760.7,2760.4,2.4105]
[1724557652396,2.4879,2761.0,2760.5,1.27124027]
[1724557652733,2.4879,2761.0,2760.9,8.51524027]
[1724557652859,2.4879,2761.0,2760.9,27.94435889]
[1724557654796,2.4879,2761.0,2760.9,23.05111862]
[1724557654994,2.4879,2761.0,2760.9,25.71844748]
[1724557657481,2.4879,2761.0,2760.9,29.34044748]
[1724557658160,2.4879,2761.0,2760.9,11.17057853]
[1724557658359,2.4879,2761.0,2760.9,9.91132886]
[1724557659122,2.4879,2761.0,2760.9,11.17058308]
[1724557659892,2.4879,2761.0,2760.9,9.91132886]
[1724557660154,2.4879,2761.0,2760.9,11.17059984]
[1724557660286,3.0,2761.5,2761.0,3.62182]
[1724557660472,0.55,2761.4,2761.0,3.62182]
[1724557660660,0.55,2761.4,2761.0,6.42905145]
[1724557661302,0.55,2761.4,2761.2,3.6216]
[1724557663669,0.55,2761.4,2761.2,7.24313]
[1724557663965,4.06,2761.6,2761.4,3.62135]
[1724557664161,0.55,2761.5,2761.4,4.588743]
[1724557667577,1.06,2761.6,2761.5,13.29476]
[1724557667706,1.06,2761.6,2761.5,16.44218367]
[1724557668207,1.06,2761.6,2761.5,30.36166613]
[1724557669015,1.06,2761.6,2761.5,29.10265862]
[1724557669371,1.06,2761.6,2761.5,27.18137448]
[1724557669980,1.06,2761.6,2761.5,30.80259448]
[1724557672273,1.06,2761.6,2761.5,28.37149448]
[1724557673050,1.06,2761.6,2761.5,8.94237586]
[1724557675857,1.06,2761.6,2761.5,11.37347586]
[1724557678467,0.30468094,2761.6,2761.5,14.99469586]
[1724557678617,0.30468094,2761.6,2761.5,18.14179756]
[1724557679013,0.30468094,2761.6,2761.5,37.57091618]
[1724557679464,0.30468094,2761.6,2761.5,41.19213618]
[1724557679672,5.3145,2762.9,2762.5,3.6199]
[1724557679820,5.3133,2762.9,2762.5,3.6199]
[1724557680016,3.61865,2763.5,2762.1,19.42911862]
[1724557680017,2.3145,2763.3,2762.6,7.17973027]
[1724557680227,2.3145,2763.3,2762.7,0.71797303]
[1724557680554,2.3145,2763.3,2762.7,4.33759303]
[1724557680866,3.61899,2763.2,2762.7,7.95709303]
[1724557681066,3.61899,2763.2,2762.7,4.33753303]
[1724557681280,2.3145,2763.3,2762.8,3.61943]
[1724557681431,2.3145,2763.3,2762.9,3.61938]
[1724557682187,5.3145,2763.3,2762.9,7.23876]
[1724557682331,5.3145,2763.3,2762.9,3.61931]
[1724557683335,0.55,2763.2,2763.1,3.61912]
[1724557683690,0.55,2763.2,2763.1,4.89036027]
[1724557683830,0.55,2763.2,2763.0,5.90799]
[1724557684035,0.55,2763.2,2763.0,3.61919]
[1724557684629,4.1688,2763.4,2762.8,3.61942]
[1724557684828,3.0,2763.3,2762.9,3.61937]
[1724557685034,0.55,2763.2,2762.7,3.61958]
[1724557685257,3.0,2763.3,2762.7,3.61958]
[1724557685460,0.55,2763.2,2762.8,3.61945]
[1724557687105,0.55,2763.2,2762.9,3.61938]
[1724557687307,0.55,2763.2,2763.0,3.61921]
[1724557687689,3.0,2763.4,2763.1,3.61904]
[1724557687690,0.55,2763.3,2763.1,3.61904]
[1724557688203,0.55,2763.4,2763.1,3.61904]
[1724557688983,5.9325,2764.0,2763.4,3.61864]
[1724557689201,9.55052,2764.0,2763.4,3.61864]
[1724557689367,3.61811,2763.9,2763.3,7.23772]
[1724557689999,3.61811,2763.9,2763.3,3.61886]
[1724557690200,7.573261,2763.8,2763.3,3.61886]
[1724557690986,0.55,2763.7,2763.3,3.61886]
[1724557691904,0.55,2763.7,2763.3,3.61878]
[1724557698202,0.55,2763.7,2763.3,7.23754]
[1724557698515,0.55,2763.7,2763.3,3.61876]
[1724557699098,0.55,2763.7,2763.4,3.61871]
[1724557699621,0.55,2763.7,2763.5,7.2371]
[1724557699781,0.55,2763.8,2763.5,3.61853]
[1724557700119,0.55,2763.8,2763.6,5.9564]
[1724557700483,0.55,2764.0,2763.6,5.9564]
[1724557701599,0.55,2764.0,2763.6,3.6184]
[1724557702491,4.16796,2764.0,2763.6,1.27124027]
[1724557702796,3.0,2763.9,2763.5,5.95659]
[1724557703002,0.55,2763.8,2763.5,5.95659]
[1724557703201,0.55,2763.8,2763.4,4.88994027]
[1724557704401,0.55,2763.8,2763.5,3.61857]
[1724557704615,0.55,2763.8,2763.4,4.88994027]
[1724557704819,2.4942,2763.3,2763.2,19.42911862]
[1724557705125,2.4942,2763.3,2762.4,3.61997]
[1724557705126,3.61934,2763.0,2762.5,19.42911862]
[1724557705331,7.23915,2762.8,2762.2,9.678]
[1724557705530,7.23915,2762.8,2762.2,7.34]
[1724557705531,3.61998,2762.5,2762.2,7.34]
[1724557705895,0.55,2762.4,2762.2,7.34]
[1724557706216,0.55,2762.4,2762.1,19.42911862]
[1724557706570,0.55,2762.5,2761.8,3.62074]
[1724557706703,3.62,2762.5,2761.8,3.62074]
[1724557706891,4.17004,2762.4,2761.8,6.28806886]
[1724557707289,4.17004,2762.4,2761.9,3.62067]
[1724557707687,0.55,2762.4,2761.9,3.62067]
[1724557707890,2.4942,2762.4,2761.8,2.66732886]
[1724557708211,2.4942,2762.4,2762.0,3.62048]
[1724557708387,2.4942,2762.4,2761.8,9.90882886]
[1724557708589,2.4942,2762.4,2761.8,6.28807886]
[1724557708934,0.55,2762.3,2761.8,3.62075]
[1724557709229,0.55,2762.3,2761.8,3.62074]
[1724557709431,0.55,2762.3,2761.8,7.24146]
[1724557709629,0.55,2762.3,2761.8,3.62072]
[1724557709819,0.55,2762.3,2761.8,7.24145]
[1724557710020,0.55,2762.3,2761.9,3.62062]
[1724557710389,3.0,2762.5,2762.2,3.6203]
[1724557710534,2.4942,2762.8,2762.0,7.24095]
[1724557710535,3.61968,2762.7,2762.0,7.24095]
[1724557710839,2.4942,2762.8,2762.0,3.62046]
[1724557710840,6.61981,2762.6,2762.0,3.62046]
[1724557710996,3.61981,2762.6,2762.0,3.62046]
[1724557711196,6.1138,2762.8,2762.0,3.62046]
[1724557711197,6.1138,2762.8,2762.1,3.62042]
[1724557711399,3.91138,2762.7,2762.1,3.62042]
[1724557711613,3.91138,2762.7,2762.3,3.62008]
[1724557711614,3.0,2762.7,2762.3,3.62008]
[1724557711937,5.4942,2762.8,2762.3,3.62008]
[1724557712522,3.61941,2762.9,2762.4,3.62002]
[1724557712725,9.11339,2763.1,2762.6,3.61977]
[1724557712726,3.61919,2763.1,2762.6,3.61977]
[1724557712925,0.55,2763.0,2762.6,3.61977]
[1724557713435,2.4942,2763.4,2762.9,3.61938]
[1724557713638,3.467356,2763.4,2762.9,3.61938]
[1724557714011,3.61888,2763.3,2762.7,3.61954]
[1724557714218,3.61904,2763.2,2762.7,3.61954]
[1724557714418,3.61912,2763.1,2762.5,7.23962]
[1724557714616,3.61912,2763.1,2762.5,3.61978]
[1724557715012,3.467356,2763.4,2762.7,3.61954]
[1724557715276,3.61838,2763.7,2763.1,3.61901]
[1724557715470,7.2368,2763.7,2763.1,3.61901]
[1724557715902,3.61838,2763.7,2763.1,3.61901]
[1724557716106,2.4942,2763.8,2763.1,3.61901]
[1724557716305,6.11242,2763.8,2763.3,3.61879]
[1724557716508,0.973055,2763.8,2763.3,7.23758]
[1724557716743,6.11173,2764.4,2763.4,3.61861]
[1724557716947,2.4942,2764.4,2763.7,3.61821]
[1724557717272,3.61737,2764.5,2764.0,3.61793]
[1724557717558,3.61709,2764.7,2764.0,3.61786]
[1724557717885,5.86954,2764.9,2764.4,3.6174]
[1724557718012,0.586954,2764.8,2764.4,3.6174]
[1724557718207,2.2527,2765.3,2764.5,3.61719]
[1724557718532,3.61659,2765.1,2764.5,3.61719]
[1724557719519,3.0,2765.0,2764.5,3.61719]
[1724557719720,3.61603,2765.5,2764.7,3.6169]
[1724557719954,2.81980584,2765.7,2764.4,0.07234602]
[1724557719955,5.86848,2765.7,2764.6,3.61714]
[1724557720156,5.86848,2765.7,2765.1,7.23284]
[1724557720355,3.61549,2765.9,2765.2,3.61627]
[1724557720561,5.86795,2766.1,2765.4,3.61602]
[1724557720853,3.61536,2766.0,2765.4,3.61602]
[1724557721205,5.86795,2766.1,2765.3,3.61622]
[1724557721206,3.61548,2765.9,2765.3,3.61622]
[1724557721453,3.6157,2765.8,2765.0,3.61656]
[1724557722532,3.6157,2765.8,2765.2,3.61635]
[1724557722725,4.44130258,2768.1,2765.5,2.3799]
[1724557722726,2.63082086,2766.7,2765.5,2.3799]
[1724557722931,2.2527,2766.7,2766.0,3.61524]
[1724557723143,0.586703,2766.7,2766.1,3.61516]
[1724557723452,0.586703,2766.7,2766.0,3.61524]
[1724557723670,3.61462,2766.6,2766.0,3.61524]
[1724557723957,3.6148,2766.4,2765.6,3.61574]
[1724557724131,3.6148,2766.4,2765.8,3.61551]
[1724557724328,3.6148,2766.4,2765.8,0.723125]
[1724557724943,3.6148,2766.4,2765.8,4.338695]
[1724557725263,3.6148,2766.4,2765.8,0.723125]
[1724557725484,3.61494,2766.3,2765.8,0.723125]
[1724557725983,3.6148,2766.4,2765.8,4.338705]
[1724557726191,3.6148,2766.4,2765.9,0.4338705]
[1724557726715,3.0,2766.6,2765.9,0.4338705]
[1724557726864,3.0,2766.7,2766.2,3.61506]
[1724557727069,3.61441,2766.7,2766.0,7.23049]
[1724557727299,3.61393,2767.1,2766.0,3.61522]
[1724557727449,3.61468,2766.5,2765.8,3.61548]
[1724557727656,3.61468,2766.5,2765.9,0.361548]
[1724557727855,6.61422,2766.9,2766.0,3.61531]
[1724557728391,3.61449,2766.7,2766.0,3.61531]
[1724557728585,3.61449,2766.7,2766.0,3.61523]
[1724557728786,10.22847,2766.9,2766.2,3.61504]
[1724557728990,10.22847,2766.9,2766.3,0.361504]
[1724557728991,7.22846,2766.9,2766.3,0.361504]
[1724557729295,3.61421,2766.9,2766.3,0.361504]
[1724557729531,3.61436,2766.8,2766.3,0.361504]
[1724557729655,3.61443,2766.7,2766.3,0.361504]
[1724557730181,7.22847,2766.9,2766.3,0.361504]
[1724557730494,3.61442,2766.7,2766.3,0.361504]
[1724557730671,3.61442,2766.7,2766.0,3.61522]
[1724557730860,3.61442,2766.7,2766.0,7.23047]
[1724557731261,3.61442,2766.7,2766.1,3.61519]
[1724557732618,3.61442,2766.7,2766.2,3.61506]
[1724557733500,3.61422,2766.9,2766.2,3.61496]
[1724557733673,3.61428,2766.8,2766.2,3.976456]
[1724557735000,3.61422,2766.9,2766.3,3.61482]
[1724557735305,3.61422,2766.9,2766.2,3.976456]
[1724557735512,3.61422,2766.9,2766.3,3.61492]
[1724557735861,3.61422,2766.9,2766.4,3.61478]
[1724557736208,3.04760013,2767.8,2766.7,3.61441]
[1724557736209,3.61371,2767.3,2766.7,3.61441]
[1724557736417,3.61371,2767.3,2766.6,3.61451]
[1724557736627,7.22744,2767.3,2766.6,3.61451]
[1724557736838,3.61371,2767.3,2766.6,3.61451]
[1724557736974,3.61371,2767.3,2766.7,3.6144]
[1724557737306,3.61344,2767.5,2766.8,0.36144]
[1724557737510,3.0,2767.4,2766.9,3.61413]
[1724557737720,6.61357,2767.4,2766.5,9.970568]
[1724557737872,3.61383,2767.2,2766.5,6.355948]
[1724557738074,3.61383,2767.2,2766.6,0.6355948]
[1724557738442,3.61383,2767.2,2766.2,0.361496]
[1724557738443,3.61436,2766.8,2766.2,0.361496]
[1724557738734,2.4462,2767.2,2765.7,6.66328013]
[1724557738735,3.61405,2767.0,2765.7,3.61563]
[1724557738874,3.61505,2766.3,2765.7,3.61563]
[1724557739073,3.61476,2766.5,2765.8,3.61553]
[1724557739820,3.615,2766.3,2765.5,3.61592]
[1724557740042,7.23003,2766.3,2765.7,3.61568]
[1724557740189,7.23003,2766.3,2765.6,0.361592]
[1724557740190,3.61522,2766.1,2765.6,0.361592]
[1724557740598,3.615,2766.3,2765.6,3.977322]
[1724557740767,3.61518,2766.2,2765.6,3.977322]
[1724557740931,3.61518,2766.2,2765.7,0.3977322]
[1724557741129,3.615,2766.3,2765.7,0.3977322]
[1724557741445,3.61521,2766.1,2765.7,0.3977322]
[1724557742254,3.61553,2765.9,2765.1,3.6164]
[1724557742462,5.49380013,2766.6,2765.0,2.3338]
[1724557742463,3.61513,2766.2,2765.0,5.95034]
[1724557742614,3.61503,2766.3,2765.3,3.61612]
[1724557742812,3.61528,2766.1,2765.5,7.23186]
[1724557743017,3.61528,2766.1,2765.5,3.6159]
[1724557743314,3.61528,2766.1,2765.4,0.361612]
[1724557744133,3.61554,2765.9,2765.4,0.361612]
[1724557744461,3.61554,2765.9,2765.3,3.61611]
[1724557744953,7.23109,2765.9,2765.3,3.61611]
[1724557745254,7.23109,2765.9,2765.2,3.61629]
[1724557745485,3.61561,2765.8,2765.2,3.61629]
[1724557746170,3.61554,2765.9,2765.3,3.61622]
[1724557746476,3.61554,2765.9,2765.3,3.61615]
[1724557747020,3.61554,2765.9,2765.3,7.23232]
[1724557747234,3.61554,2765.9,2765.3,3.61615]
[1724557748155,3.61526,2766.1,2765.5,5.94976]
[1724557748361,3.61541,2766.0,2765.6,0.594976]
[1724557748577,3.61526,2766.1,2765.6,0.594976]
[1724557749023,3.61526,2766.1,2765.6,4.210816]
[1724557749222,3.61526,2766.1,2765.6,0.594976]
[1724557749959,3.0,2766.2,2765.2,2.928823]
[1724557749960,3.61562,2765.8,2765.2,2.928823]
[1724557750359,3.61549,2765.9,2765.2,2.928823]
[1724557750360,3.61576,2765.7,2765.2,2.928823]
[1724557750721,3.61576,2765.7,2765.2,0.595023]
[1724557751035,3.61594,2765.6,2765.2,0.595023]
[1724557751225,3.61601,2765.5,2765.2,0.595023]
[1724557751575,3.61687,2764.9,2764.4,7.34]
[1724557751763,3.61687,2764.9,2764.4,3.61741]
[1724557751934,3.61657,2765.1,2764.4,3.61741]
[1724557753159,3.61679,2764.9,2764.4,3.61741]
[1724557753362,3.61679,2764.9,2764.5,0.595121]
[1724557754646,7.23366,2764.9,2764.5,0.595121]
[1724557754840,7.23366,2764.9,2764.2,39.11429862]
[1724557754841,3.61691,2764.8,2764.2,39.11429862]
[1724557755050,6.06286,2765.0,2764.1,7.34]
[1724557755267,3.61722,2764.6,2764.0,5.95173]
[1724557755467,2.86252992,2764.6,2764.1,0.595173]
[1724557755682,3.61685,2764.9,2764.1,0.595173]
[1724557755882,9.06234,2765.4,2764.1,0.595173]
[1724557755883,3.61631,2765.3,2764.6,3.61704]
[1724557756183,3.6165,2765.1,2764.5,3.61716]
[1724557756343,3.61631,2765.3,2764.1,2.3338]
[1724557756344,3.61631,2765.3,2764.3,7.34]
[1724557756549,3.61601,2765.5,2764.8,3.61676]
[1724557756958,3.61599,2765.5,2764.9,3.61669]
[1724557757247,3.61599,2765.5,2765.0,0.723345]
[1724557757670,3.61555,2765.9,2765.0,20.15246362]
[1724557757855,3.61555,2765.9,2765.3,3.61624]
[1724557758073,3.61575,2765.7,2765.2,3.61626]
[1724557758274,3.61575,2765.7,2765.3,0.361626]
[1724557758586,7.23113,2765.9,2765.3,0.361626]
[1724557758748,3.61559,2765.8,2765.3,0.361626]
[1724557759147,3.61555,2765.9,2765.3,0.361626]
[1724557759148,7.23109,2765.9,2765.3,0.361626]
[1724557759358,3.61532,2766.1,2765.5,2.3904]
[1724557759564,3.61532,2766.1,2765.5,3.0272026]
[1724557760262,7.23061,2766.1,2765.5,3.0272026]
[1724557760470,3.61513,2766.2,2765.5,3.0272026]
[1724557760678,3.6153,2766.1,2765.5,3.0272026]
[1724557760881,3.6153,2766.1,2765.6,3.61584]
[1724557761109,3.6153,2766.1,2765.7,0.66430426]
[1724557761863,7.23003,2766.3,2765.7,0.66430426]
[1724557762067,3.61501,2766.3,2765.7,0.66430426]
[1724557762573,3.61501,2766.3,2765.7,4.27999426]
[1724557762769,3.61508,2766.2,2765.7,0.66430426]
[1724557762974,3.61525,2766.1,2765.7,0.66430426]
[1724557763285,3.61508,2766.2,2765.7,0.66430426]
[1724557763893,7.23023,2766.2,2765.7,0.66430426]
[1724557764206,3.61528,2766.1,2765.7,0.66430426]
[1724557764406,3.61508,2766.2,2765.5,2.3904]
[1724557764594,3.61539,2766.0,2765.5,2.3904]
[1724557765165,3.61539,2766.0,2765.5,21.81951862]
[1724557765679,3.61585,2765.6,2765.5,19.42911862]
[1724557766090,7.2317,2765.6,2765.5,19.42911862]
[1724557767712,7.2317,2765.6,2764.7,0.76068989]
[1724557767713,3.616,2765.5,2764.6,7.34]
[1724557767916,3.61653,2765.1,2764.5,4.27681241]
[1724557768088,3.61666,2765.0,2764.4,1.88641241]
[1724557768412,3.61679,2764.9,2764.4,4.12116023]
[1724557768612,3.6169,2764.8,2764.4,0.50375023]
[1724557769517,5.3576,2765.3,2763.9,4.27706825]
[1724557769730,3.61736,2764.5,2763.9,6.00846]
[1724557770014,3.61736,2764.5,2764.0,3.61787]
[1724557770316,3.61717,2764.6,2764.0,7.23571]
[1724557770527,3.61706,2764.7,2764.1,3.6178]
[1724557770740,7.23421,2764.7,2764.1,4.580404]
[1724557771140,3.61706,2764.7,2764.1,4.580404]
[1724557771317,7.23417,2764.7,2764.1,4.580404]
[1724557772646,3.61716,2764.6,2764.1,4.580404]
[1724557773020,3.61716,2764.6,2764.1,0.962604]
[1724557773443,3.0,2765.0,2764.1,0.962604]
[1724557773444,6.61668,2765.0,2764.1,0.962604]
[1724557773646,3.61736,2764.5,2763.9,6.00847]
[1724557774225,3.61736,2764.5,2764.0,3.61789]
[1724557775368,3.61736,2764.5,2763.9,6.00846]
[1724557775570,3.61736,2764.5,2764.0,0.600846]
[1724557775967,3.61711,2764.7,2763.6,7.34]
[1724557775968,3.61783,2764.1,2763.6,9.7304]
[1724557776171,3.61783,2764.1,2763.6,2.3904]
[1724557776369,3.61761,2764.3,2763.8,3.6182]
[1724557776556,6.61744,2764.4,2763.8,3.61813]
[1724557776874,3.61758,2764.3,2763.8,4.218983]
[1724557777431,3.61717,2764.6,2764.1,2.2712]
[1724557778757,3.6174,2764.5,2764.1,2.2712]
[1724557778956,3.6174,2764.5,2763.8,4.218973]
[1724557778957,3.61749,2764.4,2763.8,5.88932]
[1724557779157,3.61749,2764.4,2763.9,0.588932]
[1724557780060,3.6174,2764.5,2763.9,0.588932]
[1724557780260,3.61744,2764.4,2763.9,4.206972]
[1724557780462,3.61744,2764.4,2764.0,1.0096292]
[1724557781661,3.61757,2764.3,2764.0,1.0096292]
[1724557782986,3.61742,2764.4,2764.0,1.0096292]
[1724557783160,3.61729,2764.5,2764.0,1.0096292]
[1724557783566,3.61758,2764.3,2764.0,1.0096292]
[1724557783761,3.61758,2764.3,2763.8,2.2712]
[1724557783977,3.61758,2764.3,2763.7,23.04744862]
[1724557783978,3.61782,2764.1,2763.7,19.42911862]
[1724557784594,3.61782,2764.1,2763.5,2.2712]
[1724557784798,3.61807,2763.9,2763.5,2.2712]
[1724557785311,3.61828,2763.8,2763.4,19.42911862]
[1724557785610,3.61807,2763.9,2763.4,19.42911862]
[1724557785834,3.0,2764.3,2763.7,3.61833]
[1724557786062,3.61775,2764.2,2763.5,8.92849686]
[1724557786341,3.61802,2764.0,2763.5,5.30999686]
[1724557786695,3.0,2764.1,2763.5,2.2712]
[1724557786902,3.61816,2763.9,2763.5,2.2712]
[1724557787193,3.6184,2763.7,2763.4,19.42911862]
[1724557788003,3.61816,2763.9,2763.4,19.42911862]
[1724557788209,3.61816,2763.9,2763.4,23.04783862]
[1724557788397,7.2363,2763.9,2763.4,23.04783862]
[1724557788993,7.23633,2763.9,2763.3,3.61885]
[1724557789222,7.23633,2763.9,2763.2,2.2712]
[1724557789223,3.61848,2763.6,2763.2,2.2712]
[1724557789444,3.6188,2763.4,2762.8,5.89062]
[1724557789612,3.6188,2763.4,2762.8,9.51007]
[1724557789952,2.4938,2763.8,2762.7,7.34]
[1724557789953,3.61899,2763.2,2762.7,7.34]
[1724557790162,7.23788,2763.3,2762.7,7.34]
[1724557790359,3.61918,2763.1,2762.7,7.34]
[1724557791009,3.61894,2763.3,2762.7,10.24403186]
[1724557791338,3.61894,2763.3,2762.8,3.61944]
[1724557791523,3.61894,2763.3,2762.7,10.24403186]
[1724557791721,3.6192,2763.1,2762.6,19.42911862]
[1724557791923,3.61886,2763.3,2762.6,23.04881862]
[1724557792125,3.6188,2763.4,2762.8,3.61942]
[1724557792437,3.61901,2763.2,2762.7,3.61962]
[1724557792621,3.61901,2763.2,2762.6,23.04882862]
[1724557792833,3.61925,2763.0,2762.6,19.42911862]
[1724557793014,3.61901,2763.2,2762.6,23.04881862]
[1724557793332,3.619,2763.2,2762.6,25.58081048]
[1724557793695,2.4938,2763.3,2762.6,19.42911862]
[1724557793902,3.61929,2763.0,2762.4,3.61996]
[1724557794133,3.61929,2763.0,2762.5,7.23972]
[1724557794332,3.61895,2763.3,2762.7,3.61955]
[1724557794494,3.0,2763.2,2762.7,3.61955]
[1724557794694,3.0,2763.2,2762.8,3.61947]
[1724557795310,3.0,2763.2,2762.7,5.89075]
[1724557795599,3.0,2763.2,2762.6,3.61977]
[1724557795833,3.61912,2763.1,2762.4,5.89124]
[1724557796138,3.61945,2762.9,2762.3,3.62014]
[1724557796323,3.61953,2762.8,2762.3,3.62014]
[1724557796654,3.61945,2762.9,2762.3,3.62014]
[1724557796804,3.61945,2762.9,2762.3,7.24019]
[1724557797138,3.61914,2763.1,2762.6,5.89086]
[1724557797344,3.61914,2763.1,2762.6,2.2712]
[1724557797712,3.61914,2763.1,2762.5,7.23964]
[1724557798041,3.61914,2763.1,2762.6,3.61974]
[1724557798613,3.61892,2763.3,2762.7,3.61962]
[1724557798814,3.0,2763.2,2762.8,3.61943]
[1724557799061,3.0,2763.4,2762.8,3.06089623]
[1724557799205,3.0,2763.6,2762.9,7.23857]
[1724557799557,3.61888,2763.3,2762.7,3.61964]
[1724557799706,3.61909,2763.2,2762.6,10.95968]
[1724557799897,3.61913,2763.1,2762.6,10.95968]
[1724557800101,7.23834,2763.1,2762.6,10.95968]
[1724557800400,3.61913,2763.1,2762.6,7.34]
[1724557800601,4.208533,2763.1,2762.6,7.34]
[1724557800800,0.589403,2763.1,2762.6,7.34]
[1724557800998,3.61909,2763.2,2762.6,10.95975]
[1724557801235,3.61914,2763.1,2762.6,10.95975]
[1724557801435,3.61933,2763.0,2762.6,7.34]
[1724557801636,3.61946,2762.9,2762.6,7.34]
[1724557803645,3.61964,2762.7,2762.6,7.34]
[1724557803806,3.61964,2762.7,2762.1,23.04944862]
[1724557804005,3.61978,2762.6,2762.0,3.62047]
[1724557804235,3.61978,2762.6,2762.0,7.24096]
[1724557804448,8.191076,2762.6,2762.0,3.62047]
[1724557804689,8.191076,2762.6,2761.7,7.34]
[1724557804690,3.62011,2762.4,2761.8,3.62079]
[1724557804909,3.61998,2762.5,2761.9,3.62062]
[1724557805125,0.951426,2762.6,2762.0,3.62056]
[1724557805408,0.951426,2762.6,2761.7,7.34]
[1724557805409,3.0,2762.7,2762.4,3.61996]
[1724557805613,6.61926,2763.0,2762.4,3.61996]
[1724557805821,6.61926,2763.0,2762.6,3.61975]
[1724557805822,3.0,2763.0,2762.6,3.61975]
[1724557806037,3.61878,2763.4,2762.8,3.61951]
[1724557806324,5.89339,2763.6,2762.8,5.88411]
[1724557806532,5.89342,2763.6,2762.8,5.88411]
[1724557806730,3.61882,2763.4,2762.8,5.88403]
[1724557807263,7.23766,2763.4,2762.8,5.88403]
[1724557807479,3.61906,2763.2,2762.4,13.22452]
[1724557807686,3.61906,2763.2,2762.5,3.61988]
[1724557807687,3.61921,2763.1,2762.5,3.61988]
[1724557807937,3.61932,2763.0,2762.4,10.95992]
[1724557808078,3.61932,2763.0,2762.2,23.04929862]
[1724557808318,3.61967,2762.7,2762.1,5.88501]
[1724557808606,3.61945,2762.9,2762.2,3.62029]
[1724557808927,3.61945,2762.9,2762.3,3.62006]
[1724557809075,7.23894,2762.9,2762.2,3.62029]
[1724557809269,3.61966,2762.7,2762.1,5.88503]
[1724557809472,3.61966,2762.7,2762.0,3.62049]
[1724557809701,5.89475,2762.6,2762.0,3.62049]
[1724557809908,3.61953,2762.8,2762.2,3.62027]
[1724557810171,3.0,2762.7,2762.2,3.62027]
[1724557810485,3.61929,2763.0,2762.2,2.626627]
[1724557810675,3.61929,2763.0,2762.4,3.61994]
[1724557810871,0.951256,2763.4,2762.7,3.61952]
[1724557811071,7.23728,2763.5,2762.7,3.61956]
[1724557811278,3.6186,2763.5,2762.9,3.61931]
[1724557811465,3.61894,2763.3,2762.7,3.61952]
[1724557811672,3.61947,2762.9,2762.3,3.62008]
[1724557811870,5.89437,2762.9,2762.3,3.62008]
[1724557812093,5.89437,2762.9,2762.2,3.62022]
[1724557812386,5.89437,2762.9,2761.8,3.62074]